[Event "Early-Titled-Tuesday-Blitz-June-18-2024"]
[Site "Chess.com"]
[Date "2024.06.18"]
[Round "4"]
[White "maximnovik"]
[Black "sammartin99"]
[Result "1-0"]
[WhiteElo "2530"]
[BlackElo "2341"]
[TimeControl "180+1"]
[EndTime "8:41:30 PDT"]
[Termination "maximnovik won on time"]

1. e4 {[%clk 0:03:00.9]} 1... e6 {[%clk 0:02:58.2]} 2. d4 {[%clk 0:03:00.9]}
2... d5 {[%clk 0:02:57.9]} 3. e5 {[%clk 0:03:01.5]} 3... c5 {[%clk 0:02:57.3]}
4. c3 {[%clk 0:03:02]} 4... Qb6 {[%clk 0:02:55.4]} 5. Nf3 {[%clk 0:03:02.3]}
5... Bd7 {[%clk 0:02:55]} 6. Bd3 {[%clk 0:03:02.8]} 6... cxd4 {[%clk 0:02:44.9]}
7. O-O {[%clk 0:03:01.6]} 7... Nc6 {[%clk 0:02:41.2]} 8. Re1 {[%clk 0:03:01.2]}
8... Nge7 {[%clk 0:02:30]} 9. h4 {[%clk 0:02:59.2]} 9... h6 {[%clk 0:02:19.3]}
10. Nbd2 {[%clk 0:02:57.5]} 10... dxc3 {[%clk 0:02:18.1]} 11. bxc3 {[%clk
0:02:56.9]} 11... Na5 {[%clk 0:01:59.8]} 12. Rb1 {[%clk 0:02:55.3]} 12... Qc7
{[%clk 0:01:58.8]} 13. Ba3 {[%clk 0:02:55.1]} 13... Nec6 {[%clk 0:01:45.3]} 14.
Bxf8 {[%clk 0:02:53.7]} 14... Kxf8 {[%clk 0:01:45.4]} 15. Nb3 {[%clk 0:02:52]}
15... Nxb3 {[%clk 0:01:24.6]} 16. axb3 {[%clk 0:02:49.1]} 16... Ke7 {[%clk
0:01:19.7]} 17. Qd2 {[%clk 0:02:49.2]} 17... Rhd8 {[%clk 0:01:11.2]} 18. b4
{[%clk 0:02:49.2]} 18... Kf8 {[%clk 0:01:05.5]} 19. Qf4 {[%clk 0:02:48.8]} 19...
Ne7 {[%clk 0:01:00.7]} 20. h5 {[%clk 0:02:47.8]} 20... Kg8 {[%clk 0:00:56.1]}
21. Rbc1 {[%clk 0:02:47.2]} 21... b5 {[%clk 0:00:53.8]} 22. g4 {[%clk 0:02:45]}
22... f5 {[%clk 0:00:16.8]} 23. gxf5 {[%clk 0:02:42.9]} 23... Nxf5 {[%clk
0:00:15.1]} 24. Bxf5 {[%clk 0:02:42.2]} 24... exf5 {[%clk 0:00:15.4]} 25. Kh2
{[%clk 0:02:41.7]} 25... Rf8 {[%clk 0:00:13.8]} 26. Rg1 {[%clk 0:02:41.2]} 26...
Kh8 {[%clk 0:00:13.4]} 27. Rg6 {[%clk 0:02:39.9]} 27... Rf7 {[%clk 0:00:07.6]}
28. Nd4 {[%clk 0:02:36.9]} 28... Rg8 {[%clk 0:00:04.5]} 29. Rcg1 {[%clk
0:02:32.9]} 29... Be8 {[%clk 0:00:02.2]} 30. R6g3 {[%clk 0:02:18.8]} 30... Re7
{[%clk 0:00:02.4]} 31. Nxf5 {[%clk 0:02:10.3]} 31... Qxe5 {[%clk 0:00:01.1]} 32.
Qxe5 {[%clk 0:01:31.1]} 32... Rxe5 {[%clk 0:00:02]} 33. Nd4 {[%clk 0:01:18]}
33... Bxh5 {[%clk 0:00:02.4]} 34. f4 {[%clk 0:01:15]} 34... Re4 {[%clk
0:00:01.9]} 35. f5 {[%clk 0:01:12.7]} 35... Be2 {[%clk 0:00:02]} 36. f6 {[%clk
0:01:07.7]} 36... Rh4+ {[%clk 0:00:02.1]} 37. Kg2 {[%clk 0:01:07.6]} 37... gxf6
{[%clk 0:00:02.7]} 38. Rxg8+ {[%clk 0:01:04.8]} 38... Kxg8 {[%clk 0:00:03.4]}
39. Kf2+ {[%clk 0:01:05.6]} 39... Bg4 {[%clk 0:00:03.7]} 40. Nf5 {[%clk
0:01:03.3]} 40... Rh5 {[%clk 0:00:03.3]} 41. Rxg4+ {[%clk 0:01:02.9]} 41... Kf7
{[%clk 0:00:04]} 42. Nd4 {[%clk 0:01:03]} 42... a6 {[%clk 0:00:03]} 43. Ke3
{[%clk 0:00:59.5]} 43... Rh3+ {[%clk 0:00:02.7]} 44. Kd2 {[%clk 0:00:59.1]}
44... h5 {[%clk 0:00:02.6]} 45. Rg1 {[%clk 0:00:58.6]} 45... Rh2+ {[%clk
0:00:01]} 46. Ke3 {[%clk 0:00:57.7]} 46... Rh3+ {[%clk 0:00:01.6]} 47. Nf3
{[%clk 0:00:56.5]} 47... f5 {[%clk 0:00:01.7]} 48. Kf4 {[%clk 0:00:56.5]} 48...
Kf6 {[%clk 0:00:02.1]} 49. Rg8 {[%clk 0:00:56]} 49... Rh1 {[%clk 0:00:01.8]} 50.
Rf8+ {[%clk 0:00:55.7]} 50... Ke6 {[%clk 0:00:02.3]} 51. Ng5+ {[%clk 0:00:54.6]}
51... Ke7 {[%clk 0:00:02.3]} 52. Rc8 {[%clk 0:00:51.3]} 52... Rf1+ {[%clk
0:00:02.4]} 53. Ke5 {[%clk 0:00:49.9]} 53... h4 {[%clk 0:00:02.9]} 54. Rc7+
{[%clk 0:00:47.8]} 54... Kd8 {[%clk 0:00:02.4]} 55. Ne6+ {[%clk 0:00:48]} 55...
Ke8 {[%clk 0:00:02.2]} 56. Kf6 {[%clk 0:00:48.1]} 1-0

[Event "Early-Titled-Tuesday-Blitz-June-18-2024"]
[Site "Chess.com"]
[Date "2024.06.18"]
[Round "4"]
[White "cristiano78"]
[Black "AndresDelgado77"]
[Result "1-0"]
[WhiteElo "2240"]
[BlackElo "2357"]
[TimeControl "180+1"]
[EndTime "8:41:30 PDT"]
[Termination "cristiano78 won on time"]

1. d4 {[%clk 0:02:56]} 1... Nf6 {[%clk 0:02:59.3]} 2. c4 {[%clk 0:02:56]} 2...
c5 {[%clk 0:02:57.4]} 3. d5 {[%clk 0:02:56.2]} 3... b5 {[%clk 0:02:54.8]} 4.
cxb5 {[%clk 0:02:56.5]} 4... a6 {[%clk 0:02:55.1]} 5. bxa6 {[%clk 0:02:56.7]}
5... Bxa6 {[%clk 0:02:53.8]} 6. Nc3 {[%clk 0:02:56.8]} 6... d6 {[%clk
0:02:44.2]} 7. Nf3 {[%clk 0:02:56.5]} 7... Qa5 {[%clk 0:02:38.8]} 8. Bd2 {[%clk
0:02:56.1]} 8... Nbd7 {[%clk 0:02:38.6]} 9. b3 {[%clk 0:02:52]} 9... g6 {[%clk
0:02:33.1]} 10. g3 {[%clk 0:02:50.4]} 10... Bg7 {[%clk 0:02:32.5]} 11. Rc1
{[%clk 0:02:32.2]} 11... O-O {[%clk 0:02:18.8]} 12. e4 {[%clk 0:02:06.8]} 12...
Ng4 {[%clk 0:02:03.8]} 13. Bxa6 {[%clk 0:02:01.7]} 13... Qxa6 {[%clk 0:02:03.3]}
14. Qe2 {[%clk 0:02:01.4]} 14... Nde5 {[%clk 0:01:52.6]} 15. Nxe5 {[%clk
0:01:58]} 15... Nxe5 {[%clk 0:01:47.8]} 16. Qxa6 {[%clk 0:01:56.2]} 16... Rxa6
{[%clk 0:01:47.3]} 17. Ke2 {[%clk 0:01:56.1]} 17... c4 {[%clk 0:01:41.6]} 18.
Na4 {[%clk 0:01:50.8]} 18... cxb3 {[%clk 0:01:36.6]} 19. axb3 {[%clk 0:01:50.3]}
19... Rb8 {[%clk 0:01:33.4]} 20. Rb1 {[%clk 0:01:49.6]} 20... Nd7 {[%clk
0:01:22.4]} 21. Rhc1 {[%clk 0:01:47.1]} 21... Ra7 {[%clk 0:01:21.8]} 22. f4
{[%clk 0:01:42.1]} 22... Rab7 {[%clk 0:01:12.3]} 23. b4 {[%clk 0:01:40.2]} 23...
Ra7 {[%clk 0:01:04.1]} 24. Nc3 {[%clk 0:01:39.8]} 24... Nb6 {[%clk 0:00:54.9]}
25. Kd3 {[%clk 0:01:26.7]} 25... f5 {[%clk 0:00:31.9]} 26. exf5 {[%clk
0:01:25.2]} 26... gxf5 {[%clk 0:00:31.4]} 27. Nb5 {[%clk 0:01:12.2]} 27... Ra4
{[%clk 0:00:26.8]} 28. Nc7 {[%clk 0:01:09.1]} 28... Ra3+ {[%clk 0:00:17.9]} 29.
Ke2 {[%clk 0:01:06]} 29... Na4 {[%clk 0:00:15.9]} 30. Ne6 {[%clk 0:01:01.3]}
30... Bf6 {[%clk 0:00:14.7]} 31. b5 {[%clk 0:00:58.1]} 31... Ra2 {[%clk
0:00:08.7]} 32. Kd1 {[%clk 0:00:55.7]} 32... Nb2+ {[%clk 0:00:08]} 33. Ke2
{[%clk 0:00:54]} 33... Rxb5 {[%clk 0:00:07.8]} 34. Rc8+ {[%clk 0:00:51.2]} 34...
Kf7 {[%clk 0:00:07.5]} 35. Rc2 {[%clk 0:00:45.7]} 35... Na4 {[%clk 0:00:02.9]}
36. Rxa2 {[%clk 0:00:43.9]} 36... Rxb1 {[%clk 0:00:03.2]} 37. Rxa4 {[%clk
0:00:44]} 37... Rb5 {[%clk 0:00:03.4]} 38. Ra7 {[%clk 0:00:40.5]} 38... Rxd5
{[%clk 0:00:03.4]} 39. Nc7 {[%clk 0:00:40.7]} 39... Rc5 {[%clk 0:00:02.3]} 40.
Na6 {[%clk 0:00:40.3]} 40... Rc2 {[%clk 0:00:01.7]} 41. Kd3 {[%clk 0:00:40.2]}
41... Rb2 {[%clk 0:00:01.9]} 42. Nb4 {[%clk 0:00:39.3]} 42... Rb3+ {[%clk
0:00:01.8]} 43. Kc2 {[%clk 0:00:39.4]} 43... Rf3 {[%clk 0:00:01.9]} 44. Nd5
{[%clk 0:00:39]} 44... Rf2 {[%clk 0:00:02]} 45. Nxf6 {[%clk 0:00:38.9]} 45...
Kxf6 {[%clk 0:00:01.8]} 46. h4 {[%clk 0:00:38.8]} 46... Rg2 {[%clk 0:00:02]} 47.
Ra3 {[%clk 0:00:36.8]} 47... h5 {[%clk 0:00:02.9]} 48. Re3 {[%clk 0:00:35.2]}
48... e6 {[%clk 0:00:01.8]} 49. Kd3 {[%clk 0:00:34.5]} 1-0

[Event "Early-Titled-Tuesday-Blitz-June-18-2024"]
[Site "Chess.com"]
[Date "2024.06.18"]
[Round "4"]
[White "Herzog2012"]
[Black "klimkoj"]
[Result "0-1"]
[WhiteElo "2611"]
[BlackElo "2901"]
[TimeControl "180+1"]
[EndTime "8:41:31 PDT"]
[Termination "klimkoj won on time"]

1. e4 {[%clk 0:03:00.9]} 1... c5 {[%clk 0:02:59.1]} 2. Nf3 {[%clk 0:03:00.3]}
2... d6 {[%clk 0:02:59.6]} 3. d4 {[%clk 0:03:00.4]} 3... cxd4 {[%clk 0:03:00.5]}
4. Nxd4 {[%clk 0:03:01.1]} 4... Nf6 {[%clk 0:03:00.8]} 5. Nc3 {[%clk 0:03:01.6]}
5... a6 {[%clk 0:03:01.4]} 6. Bg5 {[%clk 0:03:00.4]} 6... Nbd7 {[%clk
0:02:58.6]} 7. Bc4 {[%clk 0:02:59]} 7... Qb6 {[%clk 0:02:51.1]} 8. Bb3 {[%clk
0:02:58.1]} 8... e6 {[%clk 0:02:50.9]} 9. Qd2 {[%clk 0:02:58.4]} 9... Be7 {[%clk
0:02:50]} 10. O-O-O {[%clk 0:02:58.9]} 10... Nc5 {[%clk 0:02:50.2]} 11. f3
{[%clk 0:02:58.7]} 11... Qc7 {[%clk 0:02:49]} 12. g4 {[%clk 0:02:58.9]} 12... b5
{[%clk 0:02:49.4]} 13. a3 {[%clk 0:02:58.5]} 13... Rb8 {[%clk 0:02:48.1]} 14.
Kb1 {[%clk 0:02:54.4]} 14... Bd7 {[%clk 0:02:31.1]} 15. Qe2 {[%clk 0:02:45.8]}
15... b4 {[%clk 0:02:27.5]} 16. axb4 {[%clk 0:02:36.7]} 16... Rxb4 {[%clk
0:02:28.4]} 17. f4 {[%clk 0:01:48.7]} 17... h6 {[%clk 0:02:07.1]} 18. Bh4 {[%clk
0:01:20]} 18... Qb7 {[%clk 0:01:11.9]} 19. e5 {[%clk 0:01:00.1]} 19... dxe5
{[%clk 0:01:10.6]} 20. fxe5 {[%clk 0:00:53.8]} 20... Nfe4 {[%clk 0:01:11]} 21.
Nxe4 {[%clk 0:00:52]} 21... Qxe4 {[%clk 0:01:03.5]} 22. Qxe4 {[%clk 0:00:51.7]}
22... Nxe4 {[%clk 0:01:01.6]} 23. Bxe7 {[%clk 0:00:51.8]} 23... Kxe7 {[%clk
0:01:02.5]} 24. Rhf1 {[%clk 0:00:46.3]} 24... Nc5 {[%clk 0:00:40.1]} 25. Rf4
{[%clk 0:00:38.3]} 25... Rhb8 {[%clk 0:00:32.2]} 26. Rdf1 {[%clk 0:00:25.5]}
26... Be8 {[%clk 0:00:32]} 27. h4 {[%clk 0:00:13.1]} 27... a5 {[%clk 0:00:32]}
28. Kc1 {[%clk 0:00:02.4]} 28... a4 {[%clk 0:00:31.1]} 29. Ba2 {[%clk
0:00:02.9]} 29... Rxb2 {[%clk 0:00:29.7]} 30. Bc4 {[%clk 0:00:03.6]} 30... a3
{[%clk 0:00:26.3]} 31. Kd2 {[%clk 0:00:03.8]} 31... R2b4 {[%clk 0:00:21.9]} 32.
Kc3 {[%clk 0:00:03.6]} 32... Na4+ {[%clk 0:00:21]} 33. Kd2 {[%clk 0:00:03.9]}
33... Rxc4 {[%clk 0:00:17.6]} 34. Nf5+ {[%clk 0:00:04.1]} 34... exf5 {[%clk
0:00:18.1]} 35. Rxc4 {[%clk 0:00:05]} 35... fxg4 {[%clk 0:00:17.3]} 36. Rxg4
{[%clk 0:00:04.9]} 36... Rd8+ {[%clk 0:00:14.5]} 37. Ke3 {[%clk 0:00:04.6]}
37... a2 {[%clk 0:00:10.9]} 38. Ra1 {[%clk 0:00:04.2]} 38... Nc3 {[%clk
0:00:11.6]} 39. Rc4 {[%clk 0:00:04.3]} 39... Rd1 {[%clk 0:00:12]} 0-1

[Event "Early-Titled-Tuesday-Blitz-June-18-2024"]
[Site "Chess.com"]
[Date "2024.06.18"]
[Round "4"]
[White "rockstar0902"]
[Black "Vaathi_Coming"]
[Result "0-1"]
[WhiteElo "2613"]
[BlackElo "2887"]
[TimeControl "180+1"]
[EndTime "8:41:32 PDT"]
[Termination "Vaathi_Coming won on time"]

1. d4 {[%clk 0:03:00.9]} 1... g6 {[%clk 0:02:57]} 2. c4 {[%clk 0:03:00.4]} 2...
Bg7 {[%clk 0:02:57.5]} 3. Nc3 {[%clk 0:03:00.4]} 3... e6 {[%clk 0:02:57.3]} 4.
e4 {[%clk 0:02:55.3]} 4... Ne7 {[%clk 0:02:57.8]} 5. Bg5 {[%clk 0:02:54.9]} 5...
h6 {[%clk 0:02:57.2]} 6. Be3 {[%clk 0:02:54.6]} 6... d5 {[%clk 0:02:56.9]} 7.
Bd3 {[%clk 0:02:38.3]} 7... c5 {[%clk 0:02:55.7]} 8. cxd5 {[%clk 0:02:16.2]}
8... exd5 {[%clk 0:02:48.8]} 9. Nge2 {[%clk 0:02:07.1]} 9... O-O {[%clk
0:02:32.4]} 10. O-O {[%clk 0:01:55.1]} 10... Nbc6 {[%clk 0:02:21.3]} 11. exd5
{[%clk 0:01:53.1]} 11... cxd4 {[%clk 0:02:11.4]} 12. dxc6 {[%clk 0:01:35.3]}
12... dxe3 {[%clk 0:02:09.7]} 13. cxb7 {[%clk 0:01:35.5]} 13... exf2+ {[%clk
0:02:07.7]} 14. Rxf2 {[%clk 0:01:36.4]} 14... Bxb7 {[%clk 0:02:08.3]} 15. Qb3
{[%clk 0:01:27.1]} 15... Rb8 {[%clk 0:01:53.2]} 16. Rd1 {[%clk 0:01:06.3]} 16...
Qc7 {[%clk 0:01:32.2]} 17. Qc4 {[%clk 0:01:00]} 17... Qb6 {[%clk 0:01:16.5]} 18.
Na4 {[%clk 0:00:34.6]} 18... Qe3 {[%clk 0:01:15.9]} 19. Nec3 {[%clk 0:00:27.9]}
19... Bd4 {[%clk 0:00:59.1]} 20. Rf1 {[%clk 0:00:25]} 20... Qe5 {[%clk
0:00:54.1]} 21. Qb5 {[%clk 0:00:14.6]} 21... Nd5 {[%clk 0:00:13.7]} 22. Ne4
{[%clk 0:00:05.9]} 22... Bxf2+ {[%clk 0:00:08.9]} 23. Rxf2 {[%clk 0:00:06.8]}
23... Qd4 {[%clk 0:00:08.2]} 24. Qc4 {[%clk 0:00:02.9]} 24... Qxc4 {[%clk
0:00:07.3]} 25. Bxc4 {[%clk 0:00:03.8]} 25... Kg7 {[%clk 0:00:07.9]} 26. Nd6
{[%clk 0:00:03.4]} 26... Bc6 {[%clk 0:00:07.7]} 27. Nc5 {[%clk 0:00:03.3]} 27...
Rbd8 {[%clk 0:00:05.8]} 28. Ndb7 {[%clk 0:00:02.9]} 28... Bxb7 {[%clk
0:00:05.3]} 29. Nxb7 {[%clk 0:00:03.8]} 29... Rd7 {[%clk 0:00:05]} 30. Na5
{[%clk 0:00:02.4]} 30... Ne3 {[%clk 0:00:04.6]} 31. Be2 {[%clk 0:00:01.5]} 31...
Rd2 {[%clk 0:00:04.2]} 32. h4 {[%clk 0:00:01.1]} 32... Rxb2 {[%clk 0:00:04.3]}
33. Nc6 {[%clk 0:00:02]} 33... Rxa2 {[%clk 0:00:04.3]} 34. Ne5 {[%clk
0:00:01.9]} 34... Ra1+ {[%clk 0:00:04.4]} 35. Kh2 {[%clk 0:00:02]} 35... Ra2
{[%clk 0:00:05]} 36. h5 {[%clk 0:00:01.4]} 36... Nf5 {[%clk 0:00:04.1]} 0-1

[Event "Early-Titled-Tuesday-Blitz-June-18-2024"]
[Site "Chess.com"]
[Date "2024.06.18"]
[Round "4"]
[White "Keeper0416"]
[Black "Mackster23"]
[Result "1-0"]
[WhiteElo "2558"]
[BlackElo "2715"]
[TimeControl "180+1"]
[EndTime "8:41:33 PDT"]
[Termination "Keeper0416 won by resignation"]

1. d4 {[%clk 0:03:00.9]} 1... Nf6 {[%clk 0:02:52.4]} 2. c4 {[%clk 0:03:01.2]}
2... e6 {[%clk 0:02:52.6]} 3. Nf3 {[%clk 0:03:00.7]} 3... d5 {[%clk 0:02:52.5]}
4. Nc3 {[%clk 0:03:01]} 4... c5 {[%clk 0:02:52.3]} 5. cxd5 {[%clk 0:02:58.5]}
5... Nxd5 {[%clk 0:02:53.2]} 6. e4 {[%clk 0:02:56.8]} 6... Nxc3 {[%clk
0:02:53.7]} 7. bxc3 {[%clk 0:02:57.7]} 7... cxd4 {[%clk 0:02:54.4]} 8. cxd4
{[%clk 0:02:58.6]} 8... Bb4+ {[%clk 0:02:54.7]} 9. Bd2 {[%clk 0:02:59.1]} 9...
Bxd2+ {[%clk 0:02:55.5]} 10. Qxd2 {[%clk 0:03:00]} 10... O-O {[%clk 0:02:56.1]}
11. Bc4 {[%clk 0:02:55]} 11... Nd7 {[%clk 0:02:55.9]} 12. O-O {[%clk 0:02:55.2]}
12... b6 {[%clk 0:02:55.9]} 13. Rfe1 {[%clk 0:02:54.8]} 13... Bb7 {[%clk
0:02:55.3]} 14. Rad1 {[%clk 0:02:54.9]} 14... Rc8 {[%clk 0:02:54.6]} 15. Bb3
{[%clk 0:02:55]} 15... h6 {[%clk 0:02:54.7]} 16. Qf4 {[%clk 0:02:52.1]} 16...
Qc7 {[%clk 0:02:42.3]} 17. Qe3 {[%clk 0:02:34.2]} 17... Rfe8 {[%clk 0:02:38.8]}
18. h3 {[%clk 0:02:17.9]} 18... b5 {[%clk 0:02:37.4]} 19. Qd3 {[%clk 0:02:08]}
19... Qb6 {[%clk 0:02:26]} 20. Bc2 {[%clk 0:01:52.4]} 20... b4 {[%clk
0:02:03.4]} 21. Ba4 {[%clk 0:01:15.9]} 21... Rc3 {[%clk 0:01:59.1]} 22. Qd2
{[%clk 0:01:13.9]} 22... Rd8 {[%clk 0:01:57.9]} 23. Qf4 {[%clk 0:00:53.5]} 23...
Nf6 {[%clk 0:01:35.9]} 24. Bb3 {[%clk 0:00:40.2]} 24... a5 {[%clk 0:01:07.6]}
25. Qe5 {[%clk 0:00:28.3]} 25... Qc7 {[%clk 0:00:45.7]} 26. d5 {[%clk
0:00:03.1]} 26... Qxe5 {[%clk 0:00:18]} 27. Nxe5 {[%clk 0:00:04]} 27... exd5
{[%clk 0:00:18.4]} 28. exd5 {[%clk 0:00:04.9]} 28... Bxd5 {[%clk 0:00:16.8]} 29.
Ng4 {[%clk 0:00:05.2]} 29... Nxg4 {[%clk 0:00:06.9]} 30. Bxd5 {[%clk 0:00:05.5]}
30... Rxd5 {[%clk 0:00:03.7]} 31. Rxd5 {[%clk 0:00:04.9]} 31... Nf6 {[%clk
0:00:04]} 32. Rxa5 {[%clk 0:00:05.3]} 32... Rc2 {[%clk 0:00:04]} 33. Rb1 {[%clk
0:00:04.2]} 33... Rc4 {[%clk 0:00:02.4]} 34. Rb5 {[%clk 0:00:04]} 34... Ne4
{[%clk 0:00:02.4]} 35. R5xb4 {[%clk 0:00:04]} 35... Rxb4 {[%clk 0:00:01.5]} 36.
Rxb4 {[%clk 0:00:04.9]} 36... Nc3 {[%clk 0:00:02.3]} 37. Rc4 {[%clk 0:00:04.5]}
37... Nxa2 {[%clk 0:00:01.3]} 38. Kf1 {[%clk 0:00:04.9]} 38... Kf8 {[%clk
0:00:01.3]} 39. Ke2 {[%clk 0:00:05.4]} 39... Ke7 {[%clk 0:00:02]} 40. Kd3 {[%clk
0:00:06]} 40... Kd6 {[%clk 0:00:02.5]} 41. Kc2 {[%clk 0:00:06.6]} 41... Kd5
{[%clk 0:00:03.1]} 42. Ra4 {[%clk 0:00:05.7]} 1-0

[Event "Early-Titled-Tuesday-Blitz-June-18-2024"]
[Site "Chess.com"]
[Date "2024.06.18"]
[Round "4"]
[White "pouya21"]
[Black "KubaGepard"]
[Result "1/2-1/2"]
[WhiteElo "2859"]
[BlackElo "2614"]
[TimeControl "180+1"]
[EndTime "8:41:35 PDT"]
[Termination "Game drawn by repetition"]

1. e4 {[%clk 0:03:00.9]} 1... e5 {[%clk 0:02:59.8]} 2. Nc3 {[%clk 0:03:00.4]}
2... Nf6 {[%clk 0:02:59.5]} 3. Bc4 {[%clk 0:02:58.6]} 3... Bc5 {[%clk
0:02:58.5]} 4. Nf3 {[%clk 0:02:53.5]} 4... d6 {[%clk 0:02:58.1]} 5. O-O {[%clk
0:02:52.6]} 5... O-O {[%clk 0:02:57.5]} 6. d3 {[%clk 0:02:50.2]} 6... h6 {[%clk
0:02:57.3]} 7. Na4 {[%clk 0:02:46.1]} 7... Nc6 {[%clk 0:02:37.5]} 8. Nxc5 {[%clk
0:02:43.1]} 8... dxc5 {[%clk 0:02:38.4]} 9. h3 {[%clk 0:02:37.7]} 9... Qe7
{[%clk 0:02:34.9]} 10. Be3 {[%clk 0:02:27.8]} 10... b6 {[%clk 0:02:32.5]} 11. a3
{[%clk 0:02:14.1]} 11... Be6 {[%clk 0:02:23.6]} 12. Bxe6 {[%clk 0:02:06.8]}
12... Qxe6 {[%clk 0:02:21.8]} 13. Nh4 {[%clk 0:02:06.8]} 13... Ne7 {[%clk
0:02:17.9]} 14. Qf3 {[%clk 0:02:02.5]} 14... g5 {[%clk 0:02:09.8]} 15. Nf5
{[%clk 0:01:46.4]} 15... Nxf5 {[%clk 0:02:08.8]} 16. exf5 {[%clk 0:01:47.3]}
16... Qd5 {[%clk 0:02:08.4]} 17. Qg3 {[%clk 0:01:37.3]} 17... Qd7 {[%clk
0:02:05.5]} 18. Qxe5 {[%clk 0:01:36.9]} 18... Nd5 {[%clk 0:02:01.4]} 19. c4
{[%clk 0:01:14.5]} 19... Nxe3 {[%clk 0:01:58.7]} 20. fxe3 {[%clk 0:01:15.4]}
20... Rae8 {[%clk 0:01:29.2]} 21. Qf6 {[%clk 0:01:04.9]} 21... Kh7 {[%clk
0:01:26.9]} 22. d4 {[%clk 0:00:51.2]} 22... Rxe3 {[%clk 0:01:21.6]} 23. dxc5
{[%clk 0:00:51.7]} 23... bxc5 {[%clk 0:01:17.7]} 24. Rad1 {[%clk 0:00:52.2]}
24... Rd3 {[%clk 0:01:16.1]} 25. Rxd3 {[%clk 0:00:43.4]} 25... Qxd3 {[%clk
0:01:17]} 26. Qe7 {[%clk 0:00:42.9]} 26... Qd6 {[%clk 0:01:10.7]} 27. Re1 {[%clk
0:00:40.7]} 27... Qd4+ {[%clk 0:00:59.9]} 28. Kh1 {[%clk 0:00:39.8]} 28... Kg7
{[%clk 0:01:00.4]} 29. Qxc7 {[%clk 0:00:33.4]} 29... Rd8 {[%clk 0:00:51.6]} 30.
Qxa7 {[%clk 0:00:29.1]} 30... Qxc4 {[%clk 0:00:49.4]} 31. Qe7 {[%clk 0:00:25.1]}
31... Qd4 {[%clk 0:00:46.9]} 32. b3 {[%clk 0:00:16.1]} 32... Rb8 {[%clk
0:00:37.1]} 33. Qe3 {[%clk 0:00:16.3]} 33... Kf6 {[%clk 0:00:34.4]} 34. g4
{[%clk 0:00:14]} 34... Qd5+ {[%clk 0:00:29.4]} 35. Qe4 {[%clk 0:00:13.9]} 35...
Qxe4+ {[%clk 0:00:28]} 36. Rxe4 {[%clk 0:00:14.8]} 36... Rxb3 {[%clk 0:00:28.2]}
37. Kg2 {[%clk 0:00:15.5]} 37... Rxa3 {[%clk 0:00:27.8]} 38. Rc4 {[%clk
0:00:15.9]} 38... Ra5 {[%clk 0:00:28.1]} 39. Re4 {[%clk 0:00:16.2]} 39... Ra6
{[%clk 0:00:27.7]} 40. Kf3 {[%clk 0:00:16.2]} 40... Rc6 {[%clk 0:00:27.5]} 41.
Ke3 {[%clk 0:00:16.6]} 41... c4 {[%clk 0:00:27.9]} 42. Kd2 {[%clk 0:00:17.3]}
42... c3+ {[%clk 0:00:27.4]} 43. Kc2 {[%clk 0:00:17.9]} 43... Rc5 {[%clk
0:00:25.8]} 44. Re8 {[%clk 0:00:17.2]} 44... Rc4 {[%clk 0:00:25.2]} 45. Rh8
{[%clk 0:00:17.3]} 45... Kg7 {[%clk 0:00:25.3]} 46. Rd8 {[%clk 0:00:16.4]} 46...
Rc7 {[%clk 0:00:20.5]} 47. Rd6 {[%clk 0:00:15.7]} 47... Rc5 {[%clk 0:00:20.3]}
48. Rd3 {[%clk 0:00:15.5]} 48... Kf6 {[%clk 0:00:19.8]} 49. Rd6+ {[%clk
0:00:14.8]} 49... Kg7 {[%clk 0:00:19.9]} 50. Rd3 {[%clk 0:00:14.7]} 50... Kf6
{[%clk 0:00:18.4]} 51. Rd6+ {[%clk 0:00:14.9]} 51... Kg7 {[%clk 0:00:18.4]}
1/2-1/2

[Event "Early-Titled-Tuesday-Blitz-June-18-2024"]
[Site "Chess.com"]
[Date "2024.06.18"]
[Round "4"]
[White "ShahMatKanal"]
[Black "JiaHaoxiang"]
[Result "1/2-1/2"]
[WhiteElo "2474"]
[BlackElo "2640"]
[TimeControl "180+1"]
[EndTime "8:41:36 PDT"]
[Termination "Game drawn by repetition"]

1. e4 {[%clk 0:03:00.9]} 1... c5 {[%clk 0:03:00.3]} 2. Nf3 {[%clk 0:03:00.2]}
2... d6 {[%clk 0:03:00.8]} 3. d4 {[%clk 0:03:00.5]} 3... cxd4 {[%clk 0:03:01.7]}
4. Nxd4 {[%clk 0:03:01.1]} 4... Nf6 {[%clk 0:03:02.3]} 5. Nc3 {[%clk 0:03:01.1]}
5... g6 {[%clk 0:03:02.9]} 6. Be3 {[%clk 0:02:59.7]} 6... Bg7 {[%clk 0:03:03.6]}
7. f3 {[%clk 0:02:59.9]} 7... O-O {[%clk 0:03:04]} 8. Bc4 {[%clk 0:02:59.7]}
8... Nc6 {[%clk 0:03:04.3]} 9. Qd2 {[%clk 0:02:59.1]} 9... Bd7 {[%clk
0:03:04.9]} 10. O-O-O {[%clk 0:02:58.1]} 10... Rc8 {[%clk 0:03:05.5]} 11. Bb3
{[%clk 0:02:58.5]} 11... Ne5 {[%clk 0:03:06.2]} 12. h4 {[%clk 0:02:56.5]} 12...
h5 {[%clk 0:03:05.6]} 13. g4 {[%clk 0:02:41.3]} 13... hxg4 {[%clk 0:03:04.5]}
14. h5 {[%clk 0:02:42.2]} 14... Nxh5 {[%clk 0:03:04.5]} 15. Bh6 {[%clk
0:02:25.3]} 15... e6 {[%clk 0:02:56.9]} 16. Bxg7 {[%clk 0:02:14.5]} 16... Kxg7
{[%clk 0:02:56]} 17. f4 {[%clk 0:02:14.1]} 17... Nc4 {[%clk 0:02:40.6]} 18. Qf2
{[%clk 0:01:54.1]} 18... Qf6 {[%clk 0:02:33.4]} 19. f5 {[%clk 0:01:35.4]} 19...
g3 {[%clk 0:02:11.1]} 20. Qe2 {[%clk 0:01:24.8]} 20... Qg5+ {[%clk 0:01:30.3]}
21. Kb1 {[%clk 0:01:23.5]} 21... Nf4 {[%clk 0:01:19.8]} 22. Qf3 {[%clk 0:01:12]}
22... Ne5 {[%clk 0:01:19.5]} 23. Qe3 {[%clk 0:01:09.1]} 23... g2 {[%clk
0:01:16.7]} 24. Rhg1 {[%clk 0:01:02.9]} 24... exf5 {[%clk 0:01:16.9]} 25. Nd5
{[%clk 0:00:55.2]} 25... Ng4 {[%clk 0:00:56.5]} 26. Qxf4 {[%clk 0:00:53.5]}
26... Qxf4 {[%clk 0:00:56]} 27. Nxf4 {[%clk 0:00:54.4]} 27... fxe4 {[%clk
0:00:54.8]} 28. Rde1 {[%clk 0:00:41.4]} 28... Rce8 {[%clk 0:00:51.2]} 29. Rxg2
{[%clk 0:00:40.3]} 29... Rh8 {[%clk 0:00:41.9]} 30. a4 {[%clk 0:00:36.5]} 30...
f5 {[%clk 0:00:39]} 31. Ka2 {[%clk 0:00:31.1]} 31... Rh2 {[%clk 0:00:32.7]} 32.
Rxh2 {[%clk 0:00:29.3]} 32... Nxh2 {[%clk 0:00:32.5]} 33. Rg1 {[%clk 0:00:29.4]}
33... Ng4 {[%clk 0:00:32.4]} 34. a5 {[%clk 0:00:28]} 34... g5 {[%clk 0:00:28.5]}
35. Nd5 {[%clk 0:00:27]} 35... f4 {[%clk 0:00:25.7]} 36. a6 {[%clk 0:00:23.7]}
36... bxa6 {[%clk 0:00:25.2]} 37. Ba4 {[%clk 0:00:22.6]} 37... Bxa4 {[%clk
0:00:19.1]} 38. Rxg4 {[%clk 0:00:23.1]} 38... Re5 {[%clk 0:00:19.4]} 39. Nxf4
{[%clk 0:00:22.2]} 39... Kf6 {[%clk 0:00:17.6]} 40. Nfe2 {[%clk 0:00:19.4]}
40... Bd7 {[%clk 0:00:17.4]} 41. Rg3 {[%clk 0:00:19]} 41... g4 {[%clk
0:00:17.5]} 42. c3 {[%clk 0:00:19.4]} 42... Kg5 {[%clk 0:00:17.5]} 43. b4 {[%clk
0:00:18.8]} 43... e3 {[%clk 0:00:18]} 44. Kb3 {[%clk 0:00:19]} 44... Be8 {[%clk
0:00:17.4]} 45. c4 {[%clk 0:00:17.8]} 45... Bf7 {[%clk 0:00:17.6]} 46. Kc3
{[%clk 0:00:18.1]} 46... Kh4 {[%clk 0:00:16.9]} 47. Kd3 {[%clk 0:00:17.9]} 47...
Bg6+ {[%clk 0:00:17.3]} 48. Kc3 {[%clk 0:00:18.4]} 48... Bf7 {[%clk 0:00:17.9]}
49. Rg1 {[%clk 0:00:18.4]} 49... Kh3 {[%clk 0:00:17.5]} 50. Rg3+ {[%clk
0:00:17.7]} 50... Kh4 {[%clk 0:00:17.7]} 1/2-1/2